[Event "LJ Slovak Open 2022"]
[Site "Liptovsky Jan"]
[Date "2022.06.24"]
[Round "2.52"]
[White "Bilik, Matej"]
[Black "Socha, Wiktor"]
[Result "1-0"]
[ECO "B27"]
[WhiteElo "1553"]
[BlackElo "1020"]
[Annotator "NA RC"]
[PlyCount "67"]
[EventDate "2022.06.23"]
[EventType "swiss"]
[EventCountry "SVK"]
[SourceTitle "playchess.com"]
[Source "ChessBase"]
[SourceQuality "1"]
[TimeControl "3600+30"]

1. e4 {[%emt 0:00:10]} c5 {[%emt 0:00:48]} 2. Nf3 {[%emt 0:00:32]} g6 {[%emt 0:00:14]} 3. d4 {[%emt 0:00:27]} cxd4 {[%emt 0:00:15]} 4. Qxd4 {[%emt 0:03:01]} Nf6 {[%emt 0:00:11]} 5. e5 {[%emt 0:00:44]} Nc6 {[%emt 0:00:10]} 6. Qc3 {[%emt 0:00:52]} e6 {[%emt 0:03:53]} 7. a3 {[%emt 0:01:57]} Nd5 {[%emt 0:01:34]} 8. Qd3 {[%emt 0:02:58]} Bg7 {[%emt 0:03:27]} 9. Nc3 {[%emt 0:02:24]} Nxc3 {[%emt 0:06:35]} 10. Qxc3 {[%emt 0:00:11]} d6 {[%emt 0:01:42]} 11. Bg5 {[%emt 0:12:01]} Qc7 {[%emt 0:07:52]} 12. Bf6 {[%emt 0:00:30]} Bxf6 {[%emt 0:01:04]} 13. exf6 {[%emt 0:00:09]} e5 {[%emt 0:02:49]} 14. O-O-O {[%emt 0:01:59]} h6 {[%emt 0:09:20]} 15. Bb5 {[%emt 0:02:47]} a6 {[%emt 0:01:05]} 16. Bxc6+ {[%emt 0:01:39]} bxc6 {[%emt 0:00:45]} 17. h3 {[%emt 0:01:34]} Kd7 {[%emt 0:06:36]} 18. Nxe5+ {[%emt 0:02:56]} Ke8 {[%emt 0:02:08]} 19. Qxc6+ {[%emt 0:00:38]} Qxc6 {[%emt 0:01:37]} 20. Nxc6 {[%emt 0:00:08]} Bb7 {[%emt 0:01:14]} 21. Rxd6 {[%emt 0:01:21]} Rc8 {[%emt 0:00:22]} 22. Re1+ {[%emt 0:00:30]} Kf8 {[%emt 0:00:54]} 23. Red1 {[%emt 0:07:34]} Re8 {[%emt 0:01:39]} 24. f3 {[%emt 0:02:13]} Kg8 {[%emt 0:01:19]} 25. Ne7+ {[%emt 0:01:29]} Kh7 {[%emt 0:00:48]} 26. Rb6 {[%emt 0:00:23]} Bc8 {[%emt 0:02:11]} 27. Nxc8 {[%emt 0:01:31]} Rxc8 {[%emt 0:00:03]} 28. Rd7 {[%emt 0:01:47]} Rhf8 {[%emt 0:01:00]} 29. Rxa6 {[%emt 0:00:35]} g5 {[%emt 0:02:39]} 30. b4 {[%emt 0:01:49]} Kg6 {[%emt 0:01:01]} 31. Kb2 {[%emt 0:00:53]} Rc4 {[%emt 0:00:56]} 32. Kb3 {[%emt 0:02:30]} Rfc8 {[%emt 0:00:40]} 33. Rd2 {[%emt 0:01:41]} Rc3+ {[%emt 0:00:53]} 34. Kb2 {[%emt 0:00:22]} 1-0

[Event "LJ Slovak Open 2022"]
[Site "Liptovsky Jan"]
[Date "2022.06.24"]
[Round "2.53"]
[White "Magdova, Lucia"]
[Black "Ropovik, Samuel"]
[Result "0-1"]
[ECO "B60"]
[WhiteElo "1055"]
[BlackElo "1453"]
[Annotator "NA RC"]
[PlyCount "70"]
[EventDate "2022.06.23"]
[EventType "swiss"]
[EventCountry "SVK"]
[SourceTitle "playchess.com"]
[Source "ChessBase"]
[SourceQuality "1"]
[TimeControl "3600+30"]

1. e4 {[%emt 0:00:08]} c5 {[%emt 0:00:18]} 2. Nf3 {[%emt 0:00:12]} d6 {[%emt 0:00:07]} 3. d4 {[%emt 0:01:03]} cxd4 {[%emt 0:00:03]} 4. Nxd4 {[%emt 0:00:18]} Nf6 {[%emt 0:00:11]} 5. Nc3 {[%emt 0:00:32]} Nc6 {[%emt 0:00:07]} 6. Bg5 {[%emt 0:06:25]} Qa5 {[%emt 0:02:20]} 7. Be3 {[%emt 0:03:39]} Nxe4 {[%emt 0:03:41]} 8. Qd3 {[%emt 0:07:47]} Nxc3 {[%emt 0:02:10]} 9. Qxc3 {[%emt 0:02:07]} Qxc3+ {[%emt 0:00:24]} 10. bxc3 {[%emt 0:00:17]} e6 {[%emt 0:01:22]} 11. Bb5 {[%emt 0:04:23]} Bd7 {[%emt 0:02:26]} 12. O-O {[%emt 0:03:03]} Rc8 {[%emt 0:02:14]} 13. h3 {[%emt 0:02:17]} Be7 {[%emt 0:03:22]} 14. Rab1 {[%emt 0:06:03]} O-O {[%emt 0:08:22]} 15. Rfd1 {[%emt 0:02:01]} d5 {[%emt 0:04:33]} 16. a4 {[%emt 0:09:21]} Rfd8 {[%emt 0:06:43]} 17. Nxc6 {[%emt 0:04:03]} bxc6 {[%emt 0:03:25]} 18. Bd3 {[%emt 0:01:10]} c5 {[%emt 0:03:30]} 19. a5 {[%emt 0:01:33]} Bd6 {[%emt 0:04:12]} 20. Rb7 {[%emt 0:01:48]} Rb8 {[%emt 0:04:19]} 21. Rxa7 {[%emt 0:04:19]} Ra8 {[%emt 0:01:01]} 22. Ra6 {[%emt 0:00:47]} Rxa6 {[%emt 0:00:55]} 23. Bxa6 {[%emt 0:00:10]} Ra8 {[%emt 0:01:31]} 24. Be2 {[%emt 0:01:32]} Rxa5 {[%emt 0:00:55]} 25. Rb1 {[%emt 0:00:15]} Ra2 {[%emt 0:01:44]} 26. Bd1 {[%emt 0:01:28]} Ba4 {[%emt 0:02:06]} 27. Rc1 {[%emt 0:00:20]} Ra3 {[%emt 0:01:07]} 28. Bd2 {[%emt 0:00:25]} Be5 {[%emt 0:01:30]} 29. Rb1 {[%emt 0:03:07]} f6 {[%emt 0:05:11]} 30. Bh5 {[%emt 0:01:34]} Bxc2 {[%emt 0:01:06]} 31. Rc1 {[%emt 0:00:57]} Bg6 {[%emt 0:00:35]} 32. Be2 {[%emt 0:00:33]} Ra2 {[%emt 0:00:54]} 33. Rd1 {[%emt 0:00:21]} Bxc3 {[%emt 0:00:52]} 34. Bxc3 {[%emt 0:00:31]} Rxe2 {[%emt 0:00:04]} 35. Rb1 {[%emt 0:00:37]} Bxb1 {[%emt 0:00:11]} 0-1

[Event "LJ Slovak Open 2022"]
[Site "Liptovsky Jan"]
[Date "2022.06.24"]
[Round "2.54"]
[White "Szaszak, Lukas"]
[Black "Stricova Julia Nela"]
[Result "1-0"]
[ECO "D02"]
[WhiteElo "1454"]
[BlackElo "1149"]
[Annotator "NA RC"]
[PlyCount "93"]
[EventDate "2022.06.23"]
[EventType "swiss"]
[EventCountry "SVK"]
[SourceTitle "playchess.com"]
[Source "ChessBase"]
[SourceQuality "1"]
[TimeControl "3600+30"]

1. d4 {[%emt 0:00:06]} d5 {[%emt 0:00:05]} 2. Nf3 {[%emt 0:00:12]} Nf6 {[%emt 0:00:11]} 3. Bf4 {[%emt 0:00:16]} Bf5 {[%emt 0:00:26]} 4. e3 {[%emt 0:00:30]} a6 {[%emt 0:01:11]} 5. c4 {[%emt 0:00:15]} dxc4 {[%emt 0:02:21]} 6. Bxc4 {[%emt 0:00:45]} e6 {[%emt 0:01:14]} 7. a3 {[%emt 0:01:55]} Bd6 {[%emt 0:00:45]} 8. Bg3 {[%emt 0:01:54]} O-O {[%emt 0:00:44]} 9. Nc3 {[%emt 0:01:33]} Nc6 {[%emt 0:01:08]} 10. Bh4 {[%emt 0:05:51]} b5 {[%emt 0:01:54]} 11. Bd3 {[%emt 0:01:28]} Bg4 {[%emt 0:02:40]} 12. h3 {[%emt 0:00:39]} Bh5 {[%emt 0:00:56]} 13. Be4 {[%emt 0:02:52]} Qd7 {[%emt 0:03:11]} 14. Bxf6 {[%emt 0:01:16]} gxf6 {[%emt 0:04:13]} 15. d5 {[%emt 0:01:57]} Ne5 {[%emt 0:01:28]} 16. dxe6 {[%emt 0:01:51]} Qxe6 {[%emt 0:00:27]} 17. Bxa8 {[%emt 0:00:15]} Rxa8 {[%emt 0:00:16]} 18. Qd5 {[%emt 0:01:06]} Qxd5 {[%emt 0:00:19]} 19. Nxd5 {[%emt 0:00:29]} Nxf3+ {[%emt 0:00:20]} 20. gxf3 {[%emt 0:00:06]} Bxf3 {[%emt 0:00:17]} 21. Rg1+ {[%emt 0:00:14]} Kf8 {[%emt 0:00:22]} 22. Nxf6 {[%emt 0:00:51]} Ra7 {[%emt 0:01:25]} 23. Nxh7+ {[%emt 0:02:54]} Ke7 {[%emt 0:00:09]} 24. Ng5 {[%emt 0:02:40]} Bh5 {[%emt 0:01:40]} 25. f4 {[%emt 0:00:58]} Bc5 {[%emt 0:01:19]} 26. Kd2 {[%emt 0:01:07]} f6 {[%emt 0:00:54]} 27. Ne4 {[%emt 0:01:32]} Bd6 {[%emt 0:01:30]} 28. Nxd6 {[%emt 0:00:37]} Kxd6 {[%emt 0:00:12]} 29. Rg7 {[%emt 0:00:53]} Ra8 {[%emt 0:01:10]} 30. Rc1 {[%emt 0:00:28]} Rc8 {[%emt 0:00:12]} 31. e4 {[%emt 0:00:38]} c6 {[%emt 0:00:32]} 32. b4 {[%emt 0:02:37]} Re8 {[%emt 0:00:35]} 33. Ke3 {[%emt 0:00:35]} Rc8 {[%emt 0:01:13]} 34. Rc2 {[%emt 0:01:02]} c5 {[%emt 0:00:34]} 35. Rd2+ {[%emt 0:00:59]} Kc6 {[%emt 0:00:27]} 36. bxc5 {[%emt 0:00:24]} Kxc5 {[%emt 0:00:15]} 37. Rc2+ {[%emt 0:00:07]} Kb6 {[%emt 0:00:22]} 38. Rxc8 {[%emt 0:00:12]} Ka5 {[%emt 0:00:09]} 39. e5 {[%emt 0:00:46]} fxe5 {[%emt 0:00:30]} 40. fxe5 {[%emt 0:00:15]} Ka4 {[%emt 0:00:30]} 41. Rc3 {[%emt 0:00:23]} b4 {[%emt 0:00:18]} 42. axb4 {[%emt 0:00:11]} Kxb4 {[%emt 0:00:08]} 43. Kd4 {[%emt 0:00:06]} a5 {[%emt 0:00:14]} 44. Rb7+ {[%emt 0:00:27]} Ka4 {[%emt 0:00:16]} 45. Rc1 {[%emt 0:00:16]} Bf7 {[%emt 0:00:28]} 46. Ra1+ {[%emt 0:00:16]} Ba2 {[%emt 0:00:13]} 47. Rxa2# {[%emt 0:00:11]} 1-0

[Event "LJ Slovak Open 2022"]
[Site "Liptovsky Jan"]
[Date "2022.06.24"]
[Round "2.55"]
[White "Sotnik, Simon"]
[Black "Vastik, Tomas"]
[Result "0-1"]
[ECO "D55"]
[WhiteElo "1038"]
[BlackElo "1457"]
[Annotator "NA RC"]
[PlyCount "52"]
[EventDate "2022.06.23"]
[EventType "swiss"]
[EventCountry "SVK"]
[SourceTitle "playchess.com"]
[Source "ChessBase"]
[SourceQuality "1"]
[TimeControl "3600+30"]

1. d4 {[%emt 0:00:13]} d5 {[%emt 0:00:07]} 2. c4 {[%emt 0:00:19]} e6 {[%emt 0:00:30]} 3. Nc3 {[%emt 0:01:49]} Nf6 {[%emt 0:00:24]} 4. Bg5 {[%emt 0:01:34]} Be7 {[%emt 0:00:23]} 5. Nf3 {[%emt 0:01:34]} O-O {[%emt 0:02:28]} 6. e3 {[%emt 0:04:30]} h6 {[%emt 0:01:04]} 7. Bxf6 {[%emt 0:01:43]} Bxf6 {[%emt 0:00:15]} 8. e4 {[%emt 0:01:55]} dxe4 {[%emt 0:02:35]} 9. Nxe4 {[%emt 0:00:15]} Nc6 {[%emt 0:00:46]} 10. d5 {[%emt 0:01:00]} exd5 {[%emt 0:02:35]} 11. Nxf6+ {[%emt 0:02:04]} Qxf6 {[%emt 0:00:50]} 12. cxd5 {[%emt 0:00:20]} Ne5 {[%emt 0:03:09]} 13. Nxe5 {[%emt 0:00:44]} Qxe5+ {[%emt 0:00:33]} 14. Be2 {[%emt 0:00:24]} Re8 {[%emt 0:01:42]} 15. O-O {[%emt 0:00:22]} Qxe2 {[%emt 0:00:14]} 16. Qxe2 {[%emt 0:00:23]} Rxe2 {[%emt 0:00:13]} 17. Rfe1 {[%emt 0:00:46]} Rxe1+ {[%emt 0:00:21]} 18. Rxe1 {[%emt 0:00:06]} Bd7 {[%emt 0:00:11]} 19. h3 {[%emt 0:01:03]} Re8 {[%emt 0:00:14]} 20. Rc1 {[%emt 0:00:47]} c6 {[%emt 0:00:25]} 21. dxc6 {[%emt 0:01:05]} Bxc6 {[%emt 0:00:08]} 22. a3 {[%emt 0:00:59]} Re2 {[%emt 0:01:04]} 23. b4 {[%emt 0:00:11]} Kf8 {[%emt 0:01:54]} 24. Rb1 {[%emt 0:00:39]} a6 {[%emt 0:01:13]} 25. Kf1 {[%emt 0:01:22]} Bb5 {[%emt 0:01:41]} 26. Kg1 {[%emt 0:00:58]} Ba4 {[%emt 0:01:06]} 0-1

[Event "LJ Slovak Open 2022"]
[Site "Liptovsky Jan"]
[Date "2022.06.24"]
[Round "2.56"]
[White "Szabo, Marian"]
[Black "Stricova Viktoria Lea"]
[Result "1-0"]
[ECO "D02"]
[WhiteElo "1467"]
[BlackElo "1025"]
[Annotator "NA RC"]
[PlyCount "39"]
[EventDate "2022.06.23"]
[EventType "swiss"]
[EventCountry "SVK"]
[SourceTitle "playchess.com"]
[Source "ChessBase"]
[SourceQuality "1"]
[TimeControl "3600+30"]

1. d4 {[%emt 0:00:35]} d5 {[%emt 0:00:32]} 2. Nf3 {[%emt 0:00:11]} Nc6 {[%emt 0:00:26]} 3. e3 {[%emt 0:00:13]} Bg4 {[%emt 0:01:46]} 4. Nbd2 {[%emt 0:00:14]} a6 {[%emt 0:06:21]} 5. h3 {[%emt 0:00:36]} Bh5 {[%emt 0:00:56]} 6. Be2 {[%emt 0:00:17]} e6 {[%emt 0:01:54]} 7. a3 {[%emt 0:00:27]} Qd7 {[%emt 0:01:43]} 8. Ne5 {[%emt 0:01:05]} Nxe5 {[%emt 0:03:40]} 9. Bxh5 {[%emt 0:02:35]} g6 {[%emt 0:02:56]} 10. dxe5 {[%emt 0:00:20]} gxh5 {[%emt 0:02:53]} 11. Qxh5 {[%emt 0:00:18]} O-O-O {[%emt 0:02:21]} 12. O-O {[%emt 0:00:30]} f6 {[%emt 0:02:01]} 13. b4 {[%emt 0:00:51]} Qe8 {[%emt 0:02:41]} 14. Qxe8 {[%emt 0:00:20]} Rxe8 {[%emt 0:00:35]} 15. exf6 {[%emt 0:00:09]} Nxf6 {[%emt 0:01:10]} 16. Bb2 {[%emt 0:00:08]} Nh5 {[%emt 0:03:37]} 17. Bxh8 {[%emt 0:00:19]} Ng7 {[%emt 0:02:12]} 18. Bxg7 {[%emt 0:00:13]} Bxg7 {[%emt 0:00:50]} 19. Rad1 {[%emt 0:00:08]} Rg8 {[%emt 0:05:04]} 20. c4 {[%emt 0:06:03]} 1-0

[Event "LJ Slovak Open 2022"]
[Site "Liptovsky Jan"]
[Date "2022.06.24"]
[Round "2.57"]
[White "Prochazka Michal"]
[Black "Lacko, Stanislav"]
[Result "1-0"]
[ECO "C01"]
[WhiteElo "1110"]
[BlackElo "1462"]
[Annotator "NA RC"]
[PlyCount "43"]
[EventDate "2022.06.23"]
[EventType "swiss"]
[EventCountry "SVK"]
[SourceTitle "playchess.com"]
[Source "ChessBase"]
[SourceQuality "1"]
[TimeControl "3600+30"]

1. e4 {[%emt 0:00:12]} e6 {[%emt 0:00:17]} 2. d4 {[%emt 0:00:32]} d5 {[%emt 0:00:11]} 3. exd5 {[%emt 0:03:15]} exd5 {[%emt 0:00:12]} 4. Bd3 {[%emt 0:00:54]} Bd6 {[%emt 0:00:46]} 5. Nc3 {[%emt 0:01:19]} Nf6 {[%emt 0:00:25]} 6. Bg5 {[%emt 0:01:42]} c6 {[%emt 0:00:48]} 7. Qe2+ {[%emt 0:03:00]} Qe7 {[%emt 0:03:10]} 8. Bxf6 {[%emt 0:01:22]} Qxe2+ {[%emt 0:03:52]} 9. Ngxe2 {[%emt 0:01:04]} gxf6 {[%emt 0:00:09]} 10. a3 {[%emt 0:01:46]} Bg4 {[%emt 0:01:49]} 11. O-O-O {[%emt 0:04:25]} Nd7 {[%emt 0:01:35]} 12. Rde1 {[%emt 0:03:58]} O-O-O {[%emt 0:01:28]} 13. Ng3 {[%emt 0:02:46]} Bxg3 {[%emt 0:04:23]} 14. hxg3 {[%emt 0:01:17]} h6 {[%emt 0:01:56]} 15. f3 {[%emt 0:02:17]} Be6 {[%emt 0:00:30]} 16. Ne2 {[%emt 0:02:56]} f5 {[%emt 0:07:37]} 17. Nf4 {[%emt 0:00:51]} Nf8 {[%emt 0:00:33]} 18. Rh5 {[%emt 0:02:12]} Ng6 {[%emt 0:02:30]} 19. Nxe6 {[%emt 0:01:25]} Rde8 {[%emt 0:00:43]} 20. Bxf5 {[%emt 0:01:22]} Kb8 {[%emt 0:03:19]} 21. Bxg6 {[%emt 0:01:37]} fxg6 {[%emt 0:00:14]} 22. Rhe5 {[%emt 0:00:51]} 1-0

[Event "LJ Slovak Open 2022"]
[Site "Liptovsky Jan"]
[Date "2022.06.24"]
[Round "2.58"]
[White "Pisarcik, Richard"]
[Black "Moravcik Alex"]
[Result "1-0"]
[ECO "C49"]
[WhiteElo "1343"]
[BlackElo "1000"]
[Annotator "NA RC"]
[PlyCount "37"]
[EventDate "2022.06.23"]
[EventType "swiss"]
[EventCountry "SVK"]
[SourceTitle "playchess.com"]
[Source "ChessBase"]
[SourceQuality "1"]
[TimeControl "3600+30"]

1. e4 {[%emt 0:00:07]} e5 {[%emt 0:00:09]} 2. Nf3 {[%emt 0:00:08]} Nc6 {[%emt 0:00:23]} 3. Nc3 {[%emt 0:00:10]} Nf6 {[%emt 0:00:24]} 4. Bb5 {[%emt 0:00:21]} Bb4 {[%emt 0:00:19]} 5. d3 {[%emt 0:01:03]} Nd4 {[%emt 0:02:45]} 6. Bd2 {[%emt 0:01:37]} Nxf3+ {[%emt 0:00:38]} 7. Qxf3 {[%emt 0:00:09]} Bc5 {[%emt 0:00:42]} 8. Bc4 {[%emt 0:00:52]} d6 {[%emt 0:01:11]} 9. Bg5 {[%emt 0:03:44]} Bg4 {[%emt 0:00:55]} 10. Bxf6 {[%emt 0:00:34]} Bxf3 {[%emt 0:00:54]} 11. Bxd8 {[%emt 0:00:09]} Bxg2 {[%emt 0:00:25]} 12. Rg1 {[%emt 0:00:05]} O-O {[%emt 0:00:44]} 13. Rxg2 {[%emt 0:00:32]} Raxd8 {[%emt 0:01:38]} 14. O-O-O {[%emt 0:00:30]} h6 {[%emt 0:00:44]} 15. Rdg1 {[%emt 0:00:32]} g5 {[%emt 0:00:31]} 16. h4 {[%emt 0:00:30]} Kh7 {[%emt 0:00:46]} 17. hxg5 {[%emt 0:05:53]} hxg5 {[%emt 0:00:42]} 18. Rxg5 {[%emt 0:01:58]} Bxf2 {[%emt 0:00:52]} 19. Rh5# {[%emt 0:51:06]} 1-0

[Event "LJ Slovak Open 2022"]
[Site "Liptovsky Jan"]
[Date "2022.06.24"]
[Round "2.59"]
[White "Lesko Ondrej"]
[Black "Hlavac, Tomas"]
[Result "0-1"]
[ECO "C00"]
[WhiteElo "1000"]
[BlackElo "1409"]
[Annotator "NA RC"]
[PlyCount "73"]
[EventDate "2022.06.23"]
[EventType "swiss"]
[EventCountry "SVK"]
[SourceTitle "playchess.com"]
[Source "ChessBase"]
[SourceQuality "1"]
[TimeControl "3600+30"]

1. e4 {[%emt 0:00:14]} e6 {[%emt 0:00:30]} 2. Nc3 {[%emt 0:00:25]} d5 {[%emt 0:00:00]} 3. d3 {[%emt 0:00:46]} d4 {[%emt 0:00:00]} 4. e5 {[%emt 0:00:29]} dxc3 {[%emt 0:00:13]} 5. bxc3 {[%emt 0:00:46]} Nc6 {[%emt 0:00:15]} 6. Nf3 {[%emt 0:00:35]} Nge7 {[%emt 0:00:56]} 7. Ba3 {[%emt 0:00:34]} Ng6 {[%emt 0:00:33]} 8. d4 {[%emt 0:02:14]} Bxa3 {[%emt 0:00:30]} 9. Bc4 {[%emt 0:00:30]} O-O {[%emt 0:00:30]} 10. O-O {[%emt 0:01:54]} Bb2 {[%emt 0:00:00]} 11. Rb1 {[%emt 0:00:38]} Bxc3 {[%emt 0:00:07]} 12. h3 {[%emt 0:01:08]} Nxd4 {[%emt 0:00:00]} 13. Nxd4 {[%emt 0:06:37]} Bxd4 {[%emt 0:00:13]} 14. Re1 {[%emt 0:00:30]} Nxe5 {[%emt 0:01:03]} 15. Bb3 {[%emt 0:01:08]} c5 {[%emt 0:01:06]} 16. c3 {[%emt 0:02:58]} Bxc3 {[%emt 0:00:30]} 17. Qxd8 {[%emt 0:00:30]} Rxd8 {[%emt 0:00:30]} 18. Re3 {[%emt 0:00:30]} Bd4 {[%emt 0:00:30]} 19. Re4 {[%emt 0:00:30]} Nd3 {[%emt 0:00:38]} 20. Rf4 {[%emt 0:06:33]} Nxf4 {[%emt 0:00:31]} 21. Rd1 {[%emt 0:00:30]} b5 {[%emt 0:00:30]} 22. Bc2 {[%emt 0:00:30]} Bb7 {[%emt 0:00:01]} 23. Re1 {[%emt 0:02:36]} Nxg2 {[%emt 0:00:30]} 24. Rb1 {[%emt 0:00:30]} Bc6 {[%emt 0:01:12]} 25. Rf1 {[%emt 0:01:57]} c4 {[%emt 0:00:17]} 26. Kh1 {[%emt 0:03:28]} Ne3+ {[%emt 0:00:30]} 27. f3 {[%emt 0:00:30]} Nxf1 {[%emt 0:00:30]} 28. Be4 {[%emt 0:00:30]} Ng3+ {[%emt 0:00:18]} 29. Kg2 {[%emt 0:04:08]} Nxe4 {[%emt 0:00:30]} 30. fxe4 {[%emt 0:00:30]} Bxe4+ {[%emt 0:00:30]} 31. Kg3 {[%emt 0:00:30]} Be5+ {[%emt 0:00:30]} 32. Kf2 {[%emt 0:00:30]} Rd2+ {[%emt 0:00:30]} 33. Ke3 {[%emt 0:00:30]} c3 {[%emt 0:00:21]} 34. Kxe4 {[%emt 0:03:32]} f6 {[%emt 0:00:30]} 35. a4 {[%emt 0:00:30]} c2 {[%emt 0:00:30]} 36. axb5 {[%emt 0:00:30]} c1=Q {[%emt 0:00:30]} 37. h4 {[%emt 0:00:30]} 0-1

[Event "LJ Slovak Open 2022"]
[Site "Liptovsky Jan"]
[Date "2022.06.24"]
[Round "3.1"]
[White "Ihnat, Marek"]
[Black "Manik, Mikulas"]
[Result "0-1"]
[ECO "B90"]
[WhiteElo "2045"]
[BlackElo "2368"]
[Annotator "RC"]
[PlyCount "70"]
[EventDate "2022.06.23"]
[EventType "swiss"]
[EventCountry "SVK"]
[SourceTitle "playchess.com"]
[Source "ChessBase"]
[SourceQuality "1"]
[TimeControl "3600+30"]

1. e4 {[%emt 0:01:51]} c5 {[%emt 0:00:02]} 2. Nf3 {[%emt 0:00:08]} d6 {[%emt 0:00:02]} 3. d4 {[%emt 0:00:05]} cxd4 {[%emt 0:00:02]} 4. Nxd4 {[%emt 0:00:06]} Nf6 {[%emt 0:00:04]} 5. Nc3 {[%emt 0:00:05]} a6 {[%emt 0:00:03]} 6. h3 {[%emt 0:00:07]} g6 {[%emt 0:00:02]} 7. g4 {[%emt 0:00:52]} Nc6 {[%emt 0:01:00]} 8. Be3 {[%emt 0:00:39]} Bg7 {[%emt 0:01:47]} 9. Qd2 {[%emt 0:01:15]} O-O {[%emt 0:00:48]} 10. O-O-O {[%emt 0:03:10]} Bd7 {[%emt 0:00:31]} 11. g5 {[%emt 0:03:27]} Nh5 {[%emt 0:11:23]} 12. Be2 {[%emt 0:07:00]} Nf4 {[%emt 0:03:37]} 13. Nxc6 {[%emt 0:09:25]} Nxe2+ {[%emt 0:02:15]} 14. Qxe2 {[%emt 0:02:17]} Bxc6 {[%emt 0:00:51]} 15. Bd4 {[%emt 0:12:56]} Bxd4 {[%emt 0:00:15]} 16. Rxd4 {[%emt 0:00:31]} e5 {[%emt 0:00:05]} 17. Rd2 {[%emt 0:00:24]} Qxg5 {[%emt 0:00:10]} 18. h4 {[%emt 0:00:46]} Qf4 {[%emt 0:01:04]} 19. h5 {[%emt 0:02:39]} f5 {[%emt 0:06:37]} 20. hxg6 {[%emt 0:01:23]} hxg6 {[%emt 0:00:08]} 21. Kb1 {[%emt 0:02:04]} Rad8 {[%emt 0:03:53]} 22. Rg1 {[%emt 0:02:01]} Kg7 {[%emt 0:01:26]} 23. Qh5 {[%emt 0:07:21]} Rf6 {[%emt 0:04:34]} 24. exf5 {[%emt 0:00:33]} Qxf5 {[%emt 0:00:51]} 25. Qd1 {[%emt 0:02:45]} Bf3 {[%emt 0:00:52]} 26. Ne2 {[%emt 0:02:55]} d5 {[%emt 0:03:18]} 27. Ng3 {[%emt 0:03:17]} Qf4 {[%emt 0:02:31]} 28. Qe1 {[%emt 0:00:29]} d4 {[%emt 0:02:26]} 29. a3 {[%emt 0:01:45]} e4 {[%emt 0:01:08]} 30. Ne2 {[%emt 0:02:08]} Qe5 {[%emt 0:00:55]} 31. c3 {[%emt 0:00:42]} Bxe2 {[%emt 0:01:22]} 32. Rxe2 {[%emt 0:00:31]} Qf5 {[%emt 0:02:21]} 33. Ka1 {[%emt 0:00:50]} d3 {[%emt 0:01:20]} 34. Rxe4 {[%emt 0:00:18]} d2 {[%emt 0:00:40]} 35. Re7+ {[%emt 0:00:09]} Kf8 {[%emt 0:00:09]} 0-1

[Event "LJ Slovak Open 2022"]
[Site "Liptovsky Jan"]
[Date "2022.06.24"]
[Round "3.2"]
[White "Jablonicky, Martin"]
[Black "Macka, Oto"]
[Result "1-0"]
[ECO "A80"]
[WhiteElo "2377"]
[BlackElo "2026"]
[Annotator "RC"]
[PlyCount "127"]
[EventDate "2022.06.23"]
[EventType "swiss"]
[EventCountry "SVK"]
[SourceTitle "playchess.com"]
[Source "ChessBase"]
[SourceQuality "1"]
[TimeControl "3600+30"]

1. d4 {[%emt 0:11:12]} f5 {[%emt 0:00:06]} 2. Nc3 {[%emt 0:00:49]} Nf6 {[%emt 0:00:04]} 3. Bg5 {[%emt 0:00:15]} d5 {[%emt 0:00:03]} 4. Bxf6 {[%emt 0:00:26]} exf6 {[%emt 0:00:05]} 5. e3 {[%emt 0:00:06]} c6 {[%emt 0:00:43]} 6. Bd3 {[%emt 0:00:17]} Bd6 {[%emt 0:00:10]} 7. Qf3 {[%emt 0:00:29]} g6 {[%emt 0:00:27]} 8. Nge2 {[%emt 0:00:34]} Be6 {[%emt 0:00:37]} 9. Nf4 {[%emt 0:02:04]} Bf7 {[%emt 0:00:23]} 10. O-O-O {[%emt 0:01:03]} Nd7 {[%emt 0:00:27]} 11. h3 {[%emt 0:00:17]} Qc7 {[%emt 0:08:17]} 12. g4 {[%emt 0:03:07]} fxg4 {[%emt 0:01:02]} 13. hxg4 {[%emt 0:00:06]} O-O-O {[%emt 0:00:36]} 14. Rh6 {[%emt 0:01:41]} Nf8 {[%emt 0:02:49]} 15. Nce2 {[%emt 0:03:43]} Rg8 {[%emt 0:06:09]} 16. Kb1 {[%emt 0:00:28]} Rg7 {[%emt 0:00:56]} 17. Rc1 {[%emt 0:12:10]} Kb8 {[%emt 0:09:34]} 18. Rhh1 {[%emt 0:05:39]} Qe7 {[%emt 0:04:37]} 19. c4 {[%emt 0:04:47]} dxc4 {[%emt 0:04:09]} 20. Bxc4 {[%emt 0:00:05]} Bxc4 {[%emt 0:01:42]} 21. Rxc4 {[%emt 0:00:05]} Ne6 {[%emt 0:03:58]} 22. Nxe6 {[%emt 0:00:32]} Qxe6 {[%emt 0:00:14]} 23. Rc2 {[%emt 0:00:37]} Re8 {[%emt 0:03:20]} 24. Nc3 {[%emt 0:00:29]} f5 {[%emt 0:07:44]} 25. g5 {[%emt 0:05:05]} Rc8 {[%emt 0:04:59]} 26. d5 {[%emt 0:07:25]} Qe7 {[%emt 0:01:57]} 27. dxc6 {[%emt 0:00:58]} Rxc6 {[%emt 0:00:33]} 28. Qd5 {[%emt 0:05:36]} Bb4 {[%emt 0:03:29]} 29. Nb5 {[%emt 0:02:00]} Rxc2 {[%emt 0:01:01]} 30. Kxc2 {[%emt 0:00:05]} Qc5+ {[%emt 0:02:00]} 31. Qxc5 {[%emt 0:00:17]} Bxc5 {[%emt 0:00:02]} 32. Rd1 {[%emt 0:01:37]} Kc8 {[%emt 0:01:33]} 33. Rd5 {[%emt 0:00:45]} Bb6 {[%emt 0:01:10]} 34. Nd6+ {[%emt 0:00:33]} Kb8 {[%emt 0:01:05]} 35. Ne8 {[%emt 0:00:29]} Rf7 {[%emt 0:01:07]} 36. Kd3 {[%emt 0:00:42]} Re7 {[%emt 0:00:42]} 37. Nf6 {[%emt 0:00:40]} Kc8 {[%emt 0:00:11]} 38. a4 {[%emt 0:00:40]} Bd8 {[%emt 0:00:26]} 39. Rc5+ {[%emt 0:01:00]} Kb8 {[%emt 0:00:11]} 40. f4 {[%emt 0:00:50]} Rf7 {[%emt 0:00:33]} 41. Nd5 {[%emt 0:00:43]} b6 {[%emt 0:01:09]} 42. Rc6 {[%emt 0:00:19]} Kb7 {[%emt 0:00:34]} 43. Rd6 {[%emt 0:00:32]} Bc7 {[%emt 0:00:35]} 44. Re6 {[%emt 0:00:15]} Bd8 {[%emt 0:00:17]} 45. b4 {[%emt 0:00:48]} Kc8 {[%emt 0:00:22]} 46. b5 {[%emt 0:00:09]} Kd7 {[%emt 0:00:20]} 47. Rc6 {[%emt 0:00:05]} Rg7 {[%emt 0:00:40]} 48. Kd4 {[%emt 0:00:25]} Rg8 {[%emt 0:00:35]} 49. Rf6 {[%emt 0:01:23]} Rg7 {[%emt 0:00:43]} 50. Rf8 {[%emt 0:00:19]} Kc8 {[%emt 0:00:24]} 51. Ke5 {[%emt 0:00:26]} h6 {[%emt 0:00:27]} 52. gxh6 {[%emt 0:00:37]} Rh7 {[%emt 0:00:01]} 53. Kd6 {[%emt 0:00:26]} Rd7+ {[%emt 0:00:22]} 54. Ke6 {[%emt 0:00:32]} Rh7 {[%emt 0:00:06]} 55. Rf7 {[%emt 0:00:42]} Rxh6 {[%emt 0:00:13]} 56. Rxa7 {[%emt 0:00:12]} Kb8 {[%emt 0:00:38]} 57. Rg7 {[%emt 0:00:38]} g5+ {[%emt 0:00:53]} 58. Kxf5 {[%emt 0:00:07]} gxf4 {[%emt 0:00:05]} 59. exf4 {[%emt 0:00:18]} Kc8 {[%emt 0:00:15]} 60. Rg6 {[%emt 0:00:57]} Rh5+ {[%emt 0:00:49]} 61. Ke4 {[%emt 0:00:08]} Kb7 {[%emt 0:00:16]} 62. Rd6 {[%emt 0:00:18]} Rh8 {[%emt 0:00:39]} 63. f5 {[%emt 0:00:23]} Rh4+ {[%emt 0:00:49]} 64. Kf3 {[%emt 0:00:10]} 1-0